Cogmind - Beta 15 X1 @@@ ROGUE MODE // 2024.11.16 @ 23:17:06 Player: arkn Result: Destroyed by G-50 Soldier with Heavy Laser Performance ------------- Evolutions (3) 1500 Regions Visited (10) 2000 Robots Destroyed (147) 735 Value Destroyed (4956) 4956 Prototype IDs (30) 600 Alien Tech Used (0) 0 Bonus (1836) 1836 TOTAL SCORE: 11627 Bonus ------- High Alert Combat Kills 424 Follower Combat Kills 412 Entered Garrisons 200 Used RIF Installer 500 Aligned with FarCom 300 Cogmind --------- Core Integrity 0/700 Matter 300/300 Energy 2/100 System Corruption 16% Temperature Cool (19) Movement Core (950) Ox18 Location -7/Factory Parts ------- > --- POWER (1) -------- (None) > --- PROPULSION (4) --- (None) > --- UTILITY (4) ------ High-capacity Storage Unit Advanced Targeting Computer Improved Force Field High-powered Tractor Beam > --- WEAPON (4) ------- Great Axe > --- INVENTORY (20) --- Deuterium Engine Advanced Power Amplifier Advanced Heat Sink Compact Matter Pod (83) Structural Scanner Trap Scanner Improved Armor Integrity Analyzer Recoil Stabilizer Advanced Transmission Jammer Active Sensor Spoofer Cloak of Protection Advanced Hardlight Generator Recalibrator Quantum Rifle Missile Launcher Power Maul Spear Peak State ------------ > --- POWER ------------ Reinforced Deuterium Engine > --- PROPULSION ------- Armored Treads Armored Treads Armored Treads Advanced Medium Treads > --- UTILITY ---------- Advanced Power Amplifier High-capacity Storage Unit Advanced Targeting Computer Advanced Transmission Jammer > --- WEAPON ----------- Dispersion Rifle Railgun Hypervelocity Mass Driver Great Axe > --- INVENTORY -------- Particle Reactor Advanced Heat Sink Compact Matter Pod Structural Scanner Trap Scanner Improved Signal Interpreter Improved Terrain Scanner Improved Armor Integrity Analyzer Recoil Stabilizer Active Sensor Spoofer Cloak of Protection Improved Medium Armor Plating Advanced Hardlight Generator Improved Shield Generator Improved Force Field High-powered Tractor Beam Quantum Rifle Missile Launcher Power Maul Spear [Rating: 72] Favorites ----------- Power Reinforced Deuterium Engine Engine Reinforced Deuterium Engine Power Core Backup Power VII Reactor Particle Reactor Propulsion Armored Treads Treads Armored Treads Leg Aluminum Leg Utility High-capacity Storage Unit Device Scrap Suit Storage High-capacity Storage Unit Processor Advanced Targeting Computer Protection Improved Light Armor Plating Weapon Precision Assault Rifle Energy Gun Dispersion Rifle Energy Cannon Heavy Particle Cannon Ballistic Gun Precision Assault Rifle Ballistic Cannon Hypervelocity Mass Driver Special Weapon Mining Laser Impact Weapon Power Maul Slashing Weapon Great Axe Build | -11 -10 -10 -9 -9 -9 -8 -8 -7 -7 -7 ------- Run | Yrd Mat Min Mat Min Exi Min Mat Fac Gar Fac Slots Evolved 6 | . . . 2 . . . 2 2 . . Power . | . . . . . . . . . . . Propulsion 2 | . . . 2 . . . . . . . Utility 2 | . . . . . . . 2 . . . Weapon 2 | . . . . . . . . 2 . . Parts Attached 90 | 1 4 8 24 2 1 2 9 10 19 10 Power 8 | . . 1 2 . . . . 4 . 1 Engine 5 | . . 1 2 . . . . 2 . . Core 2 | . . . . . . . . 2 . . Reactor 1 | . . . . . . . . . . 1 Propulsion 27 | . 2 2 11 1 . 1 4 . 5 1 Treads 25 | . . 2 11 1 . 1 4 . 5 1 Leg 2 | . 2 . . . . . . . . . Wheel . | . . . . . . . . . . . Hover . | . . . . . . . . . . . Flight . | . . . . . . . . . . . Utility 30 | 1 2 1 4 1 1 . 3 1 8 8 Device 16 | 1 . . 1 1 . . 1 . 6 6 Storage 3 | . 2 . . . 1 . . . . . Processor 3 | . . . . . . . 1 . 1 1 Hackware . | . . . . . . . . . . . Protection 8 | . . 1 3 . . . 1 1 1 1 Artifact . | . . . . . . . . . . . Weapon 25 | . . 4 7 . . 1 2 5 6 . Energy Gun 3 | . . . . . . . 1 . 2 . Energy Cannon 2 | . . . 2 . . . . . . . Ballistic Gun 11 | . . 3 1 . . 1 1 3 2 . Ballistic Cannon 2 | . . . 1 . . . . . 1 . Launcher . | . . . . . . . . . . . Special Weapon 1 | . . 1 . . . . . . . . Impact Weapon 3 | . . . 1 . . . . 2 . . Slashing Weapon 3 | . . . 2 . . . . . 1 . Piercing Weapon . | . . . . . . . . . . . Special Melee Weapon . | . . . . . . . . . . . Unidentified Prototypes 5 | . . . 2 . . . . 2 1 . Corrupted Parts 3 | . . . . 1 . 2 . . . . System Corruption 30 | . . . . 4 . 26 . . . . Parts Lost 38 | . 4 2 13 1 . . . . 7 11 Power 4 | . 1 . 1 . . . . . . 2 Propulsion 18 | . 1 1 7 1 . . . . 4 4 Utility 4 | . . . 1 . . . . . 1 2 Weapon 12 | . 2 1 4 . . . . . 2 3 Highest Loss Streak 8 | . 3 2 6 1 . . . . 4 8 To Critical Strikes 1 | . . . 1 . . . . . . . Average Backups 17 | 7 9 12 18 19 20 19 19 19 19 19 Power . | 1 . . . . . . . . . . Propulsion 2 | 4 4 4 3 3 3 3 2 3 1 . Utility 11 | 1 2 5 11 12 12 11 11 13 14 14 Weapon 3 | 1 1 2 3 4 5 5 5 3 3 4 Tool/Special . | . . . . . . . . . . . Unused Backups 35 | 6 7 . 4 . . 2 5 1 3 7 Power 4 | 1 2 . 1 . . . . . . . Propulsion 7 | 2 2 . 1 . . . 2 . . . Utility 13 | 1 1 . 1 . . 2 1 1 2 4 Weapon 11 | 2 2 . 1 . . . 2 . 1 3 Tool/Special . | . . . . . . . . . . . Average Slot Usage (%) 94 | . 97 88 93 98 100 100 89 91 95 98 Engine 8 | . 13 8 10 11 11 11 9 6 7 6 Treads 29 | . . 17 40 42 44 44 36 30 29 29 Leg 3 | . 26 10 . . . . . . . . Device 7 | . 14 2 2 1 . . 8 7 11 8 Storage 9 | . 14 14 11 11 11 11 9 7 7 7 Processor 2 | . . . . . . . . . 3 11 Protection 5 | . . 11 8 9 11 11 9 7 2 1 Energy Gun 1 | . . . . . . . 3 1 2 6 Energy Cannon 1 | . . . 8 . . . . . . . Ballistic Gun 10 | . 27 16 1 . . . 2 20 12 6 Ballistic Cannon 2 | . . . 3 . . . 8 1 1 6 Impact Weapon 3 | . . . 5 11 11 11 . 6 6 . Slashing Weapon 4 | . . . 1 11 11 11 3 . 6 7 Peak Build Rating 72 | 8 8 9 21 21 22 22 41 59 72 72 Average Rating 36 | 6 7 7 16 20 21 21 33 55 54 65 On Entrance 25 | 6 8 5 9 21 21 22 21 41 58 72 Naked Turns . | . . . . . . . . . . . Heaviest Build 91 | 15 50 46 63 58 58 58 66 78 87 91 Greatest Support 98 | 20 20 40 83 80 80 80 80 80 90 98 Greatest Overweight (x) 2 | . 2 2 1 . . . . . 1 1 Average Overweight (x) . | . . 1 . . . . . . . . Largest Inventory Capacity 20 | 8 20 20 20 20 20 20 20 20 20 20 Average Capacity 19 | 8 14 20 20 20 20 20 20 20 20 20 Most Carried 20 | 8 10 17 20 20 20 20 20 20 20 20 Average Carried 17 | 7 9 12 18 19 19 19 19 19 19 19 Final Capacity 20 | 8 20 20 20 20 20 20 20 20 20 20 Final Carried 20 | 8 10 17 20 20 20 20 20 20 20 17 Class Distribution -------------------- 62% | Mutant 27% | Skirmisher 10% | Scavenger-Mutant Dominant Class ---------------- Mutant | -10/Materials Mutant | -10/Mines Mutant | -9/Materials Mutant | -9/Mines Mutant | -9/Exiles Mutant | -8/Mines Mutant | -8/Materials Skirmisher | -7/Factory Mutant | -7/Garrison Skirmisher | -7/Factory Resources | -11 -10 -10 -9 -9 -9 -8 -8 -7 -7 -7 ----------- Run | Yrd Mat Min Mat Min Exi Min Mat Fac Gar Fac Matter Collected 4164 | 320 262 333 644 113 . 72 457 333 855 775 Remotely 200 | . . . . . . . . . . 200 Salvage Created 4971 | 231 462 27 1599 206 . 42 509 498 829 568 Parts 289 | 15 32 5 105 3 . 2 25 27 37 38 Haulers Intercepted 7 | . 2 . 2 . . . 1 2 . . Recyclers Shooed 1 | . . . 1 . . . . . . . Parts Field Recycled . | . . . . . . . . . . . Retrieved Matter . | . . . . . . . . . . . Parts Self-Destructed . | . . . . . . . . . . . Prevented . | . . . . . . . . . . . Kills | -11 -10 -10 -9 -9 -9 -8 -8 -7 -7 -7 ------- Run | Yrd Mat Min Mat Min Exi Min Mat Fac Gar Fac Combat Hostiles Destroyed 105 | . 10 3 39 8 . 1 11 6 16 11 Melee 17 | . . . 5 5 . 1 . . 2 4 Guns 40 | . 10 3 . . . . 4 6 14 3 Cannons 38 | . . . 31 . . . 7 . . . AOE 4 | . . . . . . . . . . 4 Classes Destroyed 15 | 3 5 1 3 1 . . . 2 . . Worker 10 | 2 1 . 2 . . 1 1 . . 3 Builder 3 | . 1 . 2 . . . . . . . Tunneler 11 | 7 . . . 1 . 1 . . . 2 Hauler 7 | . 2 . 2 . . . 1 2 . . Recycler 4 | 1 . . 2 . . . . 1 . . Watcher 10 | . 3 . 3 . . . 1 1 1 1 Swarmer 27 | . 6 2 16 2 . 1 . . . . Grunt 44 | . 4 . 15 3 . . 5 2 8 7 Brawler 4 | . . . 2 . . . 1 . 1 . Duelist 1 | . . . 1 . . . . . . . Sentry 15 | . . . 5 . . . 5 . 4 1 Demolisher 1 | . . 1 . . . . . . . . Hunter 4 | . . . . . . . . 1 3 . Programmer 6 | . . . . . . . . 3 . 3 Assembled 3 | . . . . 3 . . . . . . Best Kill Streak 10 | 5 3 2 10 2 . 2 5 4 3 5 Combat Bots Only 9 | . 3 2 9 2 . 1 5 3 3 4 Max Kills in Single Turn 5 | 1 1 1 2 1 . 1 1 2 1 5 Gunslinging . | . . . . . . . . . . . Exploded 4 | . . . . . . . . . . 4 Melee 1 | . . . 1 1 . 1 . . 1 1 Uniques/NPCs Destroyed . | . . . . . . . . . . . Combat | -11 -10 -10 -9 -9 -9 -8 -8 -7 -7 -7 -------- Run | Yrd Mat Min Mat Min Exi Min Mat Fac Gar Fac Hostile Shots Fired 1013 | . 68 36 284 40 . 7 49 34 309 186 Missed 255 | . 19 6 71 12 . . 12 10 85 40 Damage Taken 9264 | . 559 394 2249 303 . 54 570 472 2323 2340 Core 1297 | . 93 136 289 52 . . 14 89 232 392 Absorbed by Shields 418 | . . . . . . . . . . 418 Redirected to Shielding 3 | . . 3 . . . . . . . . Regen/Repaired (Parts) 172 | . . . 92 . . . 40 10 30 . Core Remaining (%) 54 | 100 . 8 . . . 14 97 . . . Volleys Fired 328 | 20 50 25 98 . . . 36 23 56 20 Largest 3 | 2 2 2 2 . . . 2 3 3 3 Hottest 179 | 40 40 100 150 . . . 112 137 113 179 Shots Fired 607 | 40 100 39 116 . . . 70 70 120 52 Gun 433 | 40 100 29 . . . . 34 69 120 41 Cannon 164 | . . . 116 . . . 36 1 . 11 Launcher . | . . . . . . . . . . . Special 10 | . . 10 . . . . . . . . Kinetic 449 | 40 100 29 15 . . . 51 69 114 31 Thermal 158 | . . 10 101 . . . 19 1 6 21 Explosive . | . . . . . . . . . . . Electromagnetic . | . . . . . . . . . . . Robot Hit Streak 32 | 12 14 4 7 . . . 10 32 14 6 Robot Miss Streak 7 | 2 7 4 5 . . . 5 3 3 2 Penetration Max . | . . . . . . . . . . . Secondary Targets 5 | . . 1 . . . . . 1 3 . Max Gunslinging Chain 1 | . . 1 . . . . . 1 1 . Shots Hit Robots 465 | 27 59 14 85 18 . 4 52 55 108 43 Core Hits 219 | 10 23 4 57 3 . 1 43 17 42 19 Critical Kills 2 | . . . 1 . . . . . . 1 Critical Parts Destroyed 19 | . 3 . 5 4 . 3 . . 1 3 Critical Strikes 29 | . 3 . 8 4 . 3 . . 5 6 Meltdown 1 | . . . 1 . . . . . . . Destroy 7 | . 3 . . . . . . . . 4 Smash 14 | . . . 5 4 . 3 . . 2 . Sever 7 | . . . 2 . . . . . 3 2 Melee Attacks 164 | . . . 29 49 . 5 . . 52 29 Impact 90 | . . . 17 38 . 4 . . 31 . Slashing 74 | . . . 12 11 . 1 . . 21 29 Piercing . | . . . . . . . . . . . Sneak Attacks 14 | . . . 3 2 . 2 . . . 7 Combat Hostiles . | . . . . . . . . . . . Follow-up Attacks 12 | . . . 2 5 . 1 . . 4 . Damage Inflicted 12477 | 349 777 135 2657 878 . 271 1045 1327 2382 2656 Guns 5252 | 349 769 135 . . . . 434 1180 1690 695 Cannons 2475 | . . . 1762 . . . 611 7 . 95 Explosions 1094 | . . . . . . . . 140 . 954 Melee 3640 | . . . 887 878 . 271 . . 692 912 Ramming 16 | . 8 . 8 . . . . . . . Kinetic 5684 | 349 769 135 287 . . . 837 1187 1636 484 Thermal 3137 | . . . 1475 . . . 208 140 54 1260 Explosive . | . . . . . . . . . . . Electromagnetic . | . . . . . . . . . . . Impact 2156 | . . . 626 765 . 231 . . 534 . Slashing 1484 | . . . 261 113 . 40 . . 158 912 Piercing . | . . . . . . . . . . . Highest Corruption 43 | . 7 7 13 17 17 43 . 7 7 16 Average Corruption 8 | . 4 7 7 16 17 17 . 3 7 9 Corruption Purged . | . . . . . . . . . . . Corruption Blocked . | . . . . . . . . . . . Effects 338 | . 18 42 22 33 20 12 . 27 82 82 Message Errors 80 | . 4 11 9 8 7 2 . 5 17 17 Matter Fused 82 | . 2 11 3 11 7 5 . 5 18 20 Heat Flow Errors 46 | . 1 6 4 6 1 . . 5 12 11 Energy Discharges 50 | . 4 6 . 5 2 1 . 5 13 14 Parts Rejected 5 | . . . 1 . . . . . 2 2 Parts Fused 2 | . . 1 . . . . . . 1 . Data Loss (minor) 35 | . 5 3 3 3 2 1 . 1 10 7 Data Loss (major) 15 | . 2 2 1 . 1 2 . 3 3 1 Misfires 10 | . . 1 . . . . . 2 3 4 Alerts 9 | . . . 1 . . . . . 2 6 Misdirections 1 | . . . . . . 1 . . . . Weapon Failures 3 | . . 1 . . . . . 1 1 . Overload Shots . | . . . . . . . . . . . Overflow Damage 1145 | . . . 336 293 . 231 . 7 22 256 Projectiles 40 | . . . 40 . . . . . . . Explosions 132 | . . . . . . . . 7 . 125 Melee 973 | . . . 296 293 . 231 . . 22 131 Knockbacks 33 | . . . 14 2 . . 15 1 1 . Impact 4 | . . . 1 2 . . . . 1 . Kinetic 27 | . . . 12 . . . 14 1 . . Secondary 2 | . . . 1 . . . 1 . . . Self-Inflicted Damage 270 | . 29 . . . . . . 51 . 190 Shots 4 | . 1 . . . . . . 1 . 2 Rammed 1 | . . . 1 . . . . . . . Targets Rammed 2 | . 1 . 1 . . . . . . . Kicked 1 | . 1 . . . . . . . . . Crushed . | . . . . . . . . . . . Highest Temperature 507 | . 221 236 507 258 281 . 324 267 265 473 Average Temperature 119 | . 47 79 175 100 150 . 90 79 53 137 Received Heat Transfer 2612 | . 234 . 441 144 . . 306 72 819 596 Effects 27 | . 1 . 19 . . . 2 . . 5 Shutdowns 8 | . . . 8 . . . . . . . Energy Bleed 2 | . 1 . 1 . . . . . . . Interference 5 | . . . 3 . . . 2 . . . Matter Decay 6 | . . . 3 . . . . . . 3 Short Circuit 1 | . . . . . . . . . . 1 Damage (minor) 2 | . . . 2 . . . . . . . Damage (major) 3 | . . . 2 . . . . . . 1 Siege Activations . | . . . . . . . . . . . Martial Activations . | . . . . . . . . . . . Shielding Activations . | . . . . . . . . . . . Robots Disrupted . | . . . . . . . . . . . Combat Hostiles . | . . . . . . . . . . . Robots Corrupted 5 | . . . 2 3 . . . . . . Combat Hostiles 5 | . . . 2 3 . . . . . . Parts Fried 11 | . . . 5 3 . 3 . . . . Impact Corruptions 28 | . . . 9 11 . 7 . . 1 . Robots Melted 1 | . . . 1 . . . . . . . Combat Hostiles 1 | . . . 1 . . . . . . . Parts Melted 7 | . . . 6 . . . . . . 1 Heat Transferred 3923 | . . . 2183 . . . 370 100 150 1120 Parts Sabotaged . | . . . . . . . . . . . Parts Stolen . | . . . . . . . . . . . Parts Stripped . | . . . . . . . . . . . Power Chain Reactions . | . . . . . . . . . . . Alert | -11 -10 -10 -9 -9 -9 -8 -8 -7 -7 -7 ------- Run | Yrd Mat Min Mat Min Exi Min Mat Fac Gar Fac Maximum Alert Level 5 | . . . 2 1 . . . . 5 3 Low Security (%) 53 | 100 100 100 38 55 . 100 100 100 7 . Level 1 12 | . . . 37 44 . . . . 3 24 Level 2 19 | . . . 23 . . . . . 29 61 Level 3 9 | . . . . . . . . . 35 14 Level 4 4 | . . . . . . . . . 22 . Level 5 . | . . . . . . . . . 2 . High Security . | . . . . . . . . . . . Max Security . | . . . . . . . . . . . Peak Influence 1656 | 20 185 55 693 295 . 99 158 106 1656 869 Initial 869 | . . . . 265 . . . 51 8 869 Average 309 | 3 74 3 260 191 . 52 44 19 800 514 Influence Increases 5229 | 50 400 101 1214 245 . 109 399 299 1758 654 Destroy 0b10 Robot/C 2360 | . 200 60 780 180 . 80 220 120 500 220 Destroy 0b10 Robot/NC 225 | 50 35 . 55 5 . 10 15 20 5 30 Destroy Leader 472 | . 50 20 160 30 . 10 74 46 30 52 Allied During Kill 100 | . . . . 28 . 9 . . 63 . Successful Hack 65 | . 37 . . . . . . 14 14 . Disable Machine 255 | . 30 . 15 . . . 30 90 . 90 Anti-Garrison Action 1050 | . . . . . . . . . 1050 . Destroy Structure 207 | . 3 6 39 2 . . . 9 81 67 Lose Combat Pursuer 495 | . 45 15 165 . . . 60 . 15 195 Influence Decreases 3108 | 50 400 101 533 418 . 109 285 338 110 764 Time Decay 2678 | 50 390 101 413 368 . 109 255 338 . 654 Lost Part 320 | . 10 . 120 10 . . . . 70 110 Lost Ally 110 | . . . . 40 . . 30 . 40 . Squads Dispatched 19 | . 2 . 6 . . . 1 2 . 8 Investigation 3 | . 1 . 2 . . . . . . . Extermination 5 | . . . . . . . . 2 . 3 Reinforcement 8 | . 1 . 3 . . . 1 . . 3 Assault 2 | . . . 1 . . . . . . 1 Garrison 1 | . . . . . . . . . . 1 Intercept . | . . . . . . . . . . . Searches Triggered . | . . . . . . . . . . . Construction Impeded 1 | . . . 1 . . . . . . . Haulers Reinforced . | . . . . . . . . . . . Active Scanning Responses . | . . . . . . . . . . . Cargo Convoy Interrupts 1 | . . . . . . . . . . 1 Stealth | -11 -10 -10 -9 -9 -9 -8 -8 -7 -7 -7 --------- Run | Yrd Mat Min Mat Min Exi Min Mat Fac Gar Fac Distress Signals 11 | . . 2 5 . . . 4 . . . Communications Jammed 4 | . . . . . . . . . 4 . Distress Signals 4 | . . . . . . . . . 4 . Times Spotted 185 | . 20 4 62 12 . 4 17 11 26 29 Peak Tracking Total 11 | . 4 3 9 3 . 4 6 2 5 11 Tactical Retreats 21 | . 2 1 10 . . . 2 . 1 5 Traps | -11 -10 -10 -9 -9 -9 -8 -8 -7 -7 -7 ------- Run | Yrd Mat Min Mat Min Exi Min Mat Fac Gar Fac Traps Triggered 25 | . 4 . 6 . . . . 2 9 4 Indirectly . | . . . . . . . . . . . Trap Hack Attempts . | . . . . . . . . . . . Triggered . | . . . . . . . . . . . Disarmed . | . . . . . . . . . . . Reprogrammed . | . . . . . . . . . . . Reused . | . . . . . . . . . . . Traps Extracted . | . . . . . . . . . . . Installed . | . . . . . . . . . . . Triggered . | . . . . . . . . . . . Machines | -11 -10 -10 -9 -9 -9 -8 -8 -7 -7 -7 ---------- Run | Yrd Mat Min Mat Min Exi Min Mat Fac Gar Fac Machines Disabled 21 | . 2 . 1 . . . 2 6 4 6 Max in Single Turn 6 | . 2 . 1 . . . 1 6 1 5 Garrison Relay 4 | . . . . . . . . . 4 . Machines Repaired . | . . . . . . . . . . . Machines Dismantled . | . . . . . . . . . . . Machines Sabotaged . | . . . . . . . . . . . Overloaded Fab Kills . | . . . . . . . . . . . Hacking | -11 -10 -10 -9 -9 -9 -8 -8 -7 -7 -7 --------- Run | Yrd Mat Min Mat Min Exi Min Mat Fac Gar Fac Machines Accessed 13 | . 5 . 2 . 1 . 1 2 2 . Terminals 9 | . 5 . 1 . . . 1 . 2 . Fabricators 1 | . . . . . . . . 1 . . Repair Stations 1 | . . . 1 . . . . . . . Recycling Units . | . . . . . . . . . . . Scanalyzers . | . . . . . . . . . . . Garrison Access 1 | . . . . . . . . 1 . . Total Hacks 40 | . 24 . 2 . 1 . 2 5 6 . Successful 19 | . 14 . 1 . 1 . 1 1 1 . Failed 21 | . 10 . 1 . . . 1 4 5 . Catastrophic 2 | . . . . . . . . 1 1 . Database Lockouts . | . . . . . . . . . . . Manual 28 | . 23 . 1 . 1 . . 3 . . Terminals 33 | . 24 . 1 . . . 2 . 6 . Fabricators 3 | . . . . . . . . 3 . . Repair Stations 1 | . . . 1 . . . . . . . Recycling Units . | . . . . . . . . . . . Scanalyzers . | . . . . . . . . . . . Garrison Access 2 | . . . . . . . . 2 . . Terminal Hacks 6 | . 3 . . . 1 . 1 . 1 . Prototype ID Bank 1 | . 1 . . . . . . . . . Branch Access Points 1 | . 1 . . . . . . . . . Emergency Access Points 1 | . . . . . . . . . 1 . Locate Traps 2 | . 1 . . . . . 1 . . . Derelict Proto ID Bank 1 | . . . . . 1 . . . . . Fabricator Hacks . | . . . . . . . . . . . Repair Station Hacks . | . . . . . . . . . . . Recycling Unit Hacks . | . . . . . . . . . . . Scanalyzer . | . . . . . . . . . . . Garrison Access Hacks 1 | . . . . . . . . 1 . . Unlock Access 1 | . . . . . . . . 1 . . Unauthorized Hacks 12 | . 11 . 1 . . . . . . . Terminals 11 | . 11 . . . . . . . . . Track 1 | . 1 . . . . . . . . . Botnet 5 | . 5 . . . . . . . . . Operators 1 | . 1 . . . . . . . . . Skim 4 | . 4 . . . . . . . . . Fabricators . | . . . . . . . . . . . Repair Stations 1 | . . . 1 . . . . . . . Patch 1 | . . . 1 . . . . . . . Recycling Units . | . . . . . . . . . . . Scanalyzers . | . . . . . . . . . . . Garrison Access . | . . . . . . . . . . . Data Cores Recovered . | . . . . . . . . . . . Used . | . . . . . . . . . . . Hacking Detections 10 | . 5 . 1 . . . 1 2 1 . Full Trace Events 2 | . 1 . . . . . . . 1 . Feedback Events . | . . . . . . . . . . . Feedback Blocked . | . . . . . . . . . . . Robot Schematics Acquired . | . . . . . . . . . . . Robots Built . | . . . . . . . . . . . Authchips . | . . . . . . . . . . . Time . | . . . . . . . . . . . Total Robot Build Rating . | . . . . . . . . . . . Part Schematics Acquired . | . . . . . . . . . . . Parts Built . | . . . . . . . . . . . Authchips . | . . . . . . . . . . . Time . | . . . . . . . . . . . Total Part Build Rating . | . . . . . . . . . . . Parts Repaired . | . . . . . . . . . . . Time . | . . . . . . . . . . . Parts Recycled . | . . . . . . . . . . . Recycled Matter . | . . . . . . . . . . . Retrieved Matter . | . . . . . . . . . . . Retrieved Components . | . . . . . . . . . . . Parts Scanalyzed . | . . . . . . . . . . . Part Schematics Acquired . | . . . . . . . . . . . Parts Damaged . | . . . . . . . . . . . Bothacking | -11 -10 -10 -9 -9 -9 -8 -8 -7 -7 -7 ------------ Run | Yrd Mat Min Mat Min Exi Min Mat Fac Gar Fac Used RIF Installer 1 | . . . . . . . . . 1 . Robots Hacked . | . . . . . . . . . . . Non-combat . | . . . . . . . . . . . Combat . | . . . . . . . . . . . Robot Hacks Applied . | . . . . . . . . . . . Relay Couplers Released 20 | . . . . . . . . . 20 . Machine Destruction 20 | . . . . . . . . . 20 . Fabnet Peak Effective % . | . . . . . . . . . . . Robots Rewired . | . . . . . . . . . . . Allies Hacked . | . . . . . . . . . . . Hacks Repelled . | . . . . . . . . . . . Allies | -11 -10 -10 -9 -9 -9 -8 -8 -7 -7 -7 -------- Run | Yrd Mat Min Mat Min Exi Min Mat Fac Gar Fac Total Allies 8 | . . 1 . 5 . . . . 2 . Largest Group 5 | . . 1 . 5 3 2 2 . 2 . Highest-Rated Group 175 | . . 31 . 79 32 24 24 . 175 . Highest-Rated Ally 95 | . . 31 . 31 16 16 16 . 95 . Total Orders . | . . . . . . . . . . . Ally Attacks 78 | . . . . 30 . 14 7 . 27 . Total Damage 1538 | . . . . 314 . 105 46 . 1073 . Kills 16 | . . . . 4 . 3 . . 9 . Allies Corrupted . | . . . . . . . . . . . Allies Melted . | . . . . . . . . . . . Intel | -11 -10 -10 -9 -9 -9 -8 -8 -7 -7 -7 ------- Run | Yrd Mat Min Mat Min Exi Min Mat Fac Gar Fac Active Infowar (turns) 5737 | 3 1344 266 472 130 . . . . 1658 1864 Structural 1634 | . . . 472 130 . . . . . 1032 Seismic 2753 | 3 1344 266 . . . . . . 1140 . Cloaking 79 | . . . . . . . . . . 79 Spoofing 346 | . . . . . . . . . 56 290 Jamming 1048 | . . . . . . . . . 483 565 Robot Analysis Total . | . . . . . . . . . . . Derelict Logs Recovered 3 | . . 1 . 2 . . . . . . Drone Launches . | . . . . . . . . . . . Drone Recoveries . | . . . . . . . . . . . Exploration | -11 -10 -10 -9 -9 -9 -8 -8 -7 -7 -7 ------------- Run | Yrd Mat Min Mat Min Exi Min Mat Fac Gar Fac Turns Passed 15556 | 223 1344 1425 2352 844 581 223 1470 1676 2994 2424 Spaces Moved 7021 | 44 618 534 906 431 362 129 575 808 1335 1279 Core . | . . . . . . . . . . . Treads 6182 | . . 357 906 431 362 129 575 808 1335 1279 Legs 839 | 44 618 177 . . . . . . . . Wheels . | . . . . . . . . . . . Hover . | . . . . . . . . . . . Flight . | . . . . . . . . . . . Fastest Speed 120 | 120 120 240 160 160 160 160 160 170 163 161 Average Speed 179 | 120 181 246 177 160 160 160 163 170 191 168 Slowest Speed 260 | 120 260 260 240 160 160 160 170 170 250 245 Overloaded Moves . | . . . . . . . . . . . Propulsion Burnouts . | . . . . . . . . . . . Robots Hopped . | . . . . . . . . . . . Cave-ins Triggered . | . . . . . . . . . . . Exploration Rate (%) 58 | 4 91 73 77 83 86 29 42 29 93 37 Regions Visited 10 Branch Regions 4 Pre-discovered Areas . | . . . . . . . . . . . Known Exits Taken 3 | . 1 . . . . . 1 1 . . Unknown Exits Taken 6 | 1 . 1 1 1 1 1 . . . . Scrap Searched 2 | . . 1 . 1 . . . . . . Spaces Dug 30 | . . 3 7 2 . . . . 8 10 Terrain Destroyed 136 | . . 6 39 2 . . . 12 8 69 Melee 21 | . . . 2 2 . . . . 8 9 Projectile 48 | . . 6 37 . . . . . . 5 AOE 67 | . . . . . . . . 12 . 55 Terrain Rammed . | . . . . . . . . . . . Walls Destroyed . | . . . . . . . . . . . Machines Disabled . | . . . . . . . . . . . Actions | -11 -10 -10 -9 -9 -9 -8 -8 -7 -7 -7 --------- Run | Yrd Mat Min Mat Min Exi Min Mat Fac Gar Fac Total 9127 | 173 740 586 1482 504 365 137 1045 1065 1584 1446 Wait 1375 | 107 61 8 379 32 . . 401 203 101 83 Move 7005 | 43 617 533 905 430 361 128 574 807 1328 1279 Hop . | . . . . . . . . . . . Pick Up 74 | 2 3 12 21 1 1 1 9 7 11 6 Fast Attach 42 | 1 1 1 18 . . . 1 7 7 6 Attach 36 | . . 4 12 1 . . 2 2 9 6 Detach 5 | . . . 1 . . . 1 . 2 1 Swap 53 | . 3 3 10 2 1 2 8 2 9 13 Drop 60 | . 4 . 12 . 2 2 13 14 10 3 Fire 328 | 20 50 25 98 . . . 36 23 56 20 Melee 139 | . . . 25 38 . 4 . . 43 29 Ram . | . . . . . . . . . . . Kick 1 | . 1 . . . . . . . . . Crush 1 | . . . 1 . . . . . . . Escape Stasis 8 | . . . . . . . . . 8 . Rewire . | . . . . . . . . . . . Trap . | . . . . . . . . . . . Miscellaneous . | . . . . . . . . . . . Route ------- -11/Scrapyard -10/Materials (discovered 4 exits: *Mat x3 / *Min) -10/Mines (discovered 2 exits: *Mat x2) -9/Materials (discovered 3 exits: *Mat x2 / [*Min]) -9/Mines (discovered 3 exits: *Mat x2 / *Exi) -9/Exiles -8/Mines -8/Materials (discovered 2 exits: *Fac x2) -7/Factory -7/Garrison (discovered 3 exits: *Fac x3) -7/Factory (discovered 1 exit: *Low) History --------- Turn | Location | Event 20 | -11/Scrapyard | Discovered new exit (range 3) 224 | -11/Scrapyard | Entered Materials 305 | -10/Materials | Build established: Mutant 485 | -10/Materials | Discovered new exit (range 15) 560 | -10/Materials | Discovered new exit (range 15) 795 | -10/Materials | Identified exit to Mines 955 | -10/Materials | Discovered new exit (range 10) 1046 | -10/Materials | Discovered new exit (range 13) 1568 | -10/Materials | Entered Mines 1569 | -10/Mines | Assembled infested the area 1574 | -10/Mines | Assisted by a Guerilla fighting off Assembled 1592 | -10/Mines | Lost 3 parts (1p2w) 1653 | -10/Mines | Discovered new exit (range 8) 1728 | -10/Mines | Discovered new exit (range 6) 1849 | -10/Mines | Core integrity fell below 50% 1888 | -10/Mines | Learned Materials non-interactive machine intel 2069 | -10/Mines | Core integrity fell below 20% 2293 | -10/Mines | Received a Mining Laser from a helpful Derelict 2993 | -10/Mines | Entered Materials 2993 | -9/Materials | Evolved 2 slots: Propulsion x2 2994 | -9/Materials | Loaded intel: 34 non-interactive machine locations 3891 | -9/Materials | Destroyed 9 combat bots 3991 | -9/Materials | Discovered new exit (range 13) 4187 | -9/Materials | Lost 3 parts (3n) 4310 | -9/Materials | Discovered new exit (range 14) 4314 | -9/Materials | Build established: Scavenger-Mutant 4872 | -9/Materials | Discovered new exit (range 11) 4917 | -9/Materials | Core integrity fell below 50% 4993 | -9/Materials | First assault squad dispatched 5089 | -9/Materials | System corruption reached 10% 5119 | -9/Materials | Lost 6 parts (1p2n1u2w) 5345 | -9/Materials | Entered Mines 5353 | -9/Mines | Discovered new exit (range 14) 5356 | -9/Mines | Build established: Mutant 5398 | -9/Mines | Excavation squad dispatched 5398 | -9/Mines | A large section of the Mines collapsed 5432 | -9/Mines | Met a Derelict bent on vengeance 5557 | -9/Mines | Core integrity fell below 20% 5690 | -9/Mines | Assisted by bots powering up and referring to "LRC-V3" 5939 | -9/Mines | Found a hidden stash of uninstalled traps 5944 | -9/Mines | Learned location of 1 exit from Materials 5991 | -9/Mines | Learned Materials security intel 6031 | -9/Mines | Discovered new exit (range 10) 6165 | -9/Mines | Deemed a non-threat by the Exiles lab entrance 6167 | -9/Mines | Discovered new exit (range 5) 6189 | -9/Mines | Entered Exiles 6189 | -9/Exiles | Accompanied by 3 allies 6228 | -9/Exiles | Met 8R-AWN 6255 | -9/Exiles | Met EX-HEX 6300 | -9/Exiles | Met EX-BIN 6319 | -9/Exiles | Aligned with FarCom system 6321 | -9/Exiles | Given EX-Vault access code 6365 | -9/Exiles | Opened EX-Vault 6377 | -9/Exiles | Found Cloak of Protection 6410 | -9/Exiles | Warned to stay clear of 0b10 Research branches 6460 | -9/Exiles | Met EX-DEC 6514 | -9/Exiles | Visited The Gauntlet 6750 | -9/Exiles | Discovered new exit (range 14) 6770 | -9/Exiles | Left Exiles lab with Cloak of Protection 6770 | -9/Exiles | Entered Mines 6770 | -8/Mines | Accompanied by 2 allies 6888 | -8/Mines | Discovered new exit (range 12) 6928 | -8/Mines | Found a Scrap Suit stashed away for nefarious purposes 6933 | -8/Mines | Found Scrap Suit 6991 | -8/Mines | System corruption reached 30% 6993 | -8/Mines | Entered Materials 6993 | -8/Materials | Accompanied by 2 allies 6993 | -8/Materials | Evolved 2 slots: Utility x2 6994 | -8/Materials | Identified exit to Factory 7849 | -8/Materials | Build established: Scavenger-Mutant 8287 | -8/Materials | Build established: Mutant 8444 | -8/Materials | Discovered exit to Factory (range 4) 8463 | -8/Materials | Entered Factory 8463 | -7/Factory | Evolved 2 slots: Weapon x2 8787 | -7/Factory | Build established: Skirmisher 10086 | -7/Factory | Identified exit to Garrison 10139 | -7/Factory | Entered Garrison 10153 | -7/Garrison | Found embedded Infiltrators 10279 | -7/Garrison | Triggered checkpoint 10353 | -7/Garrison | Triggered checkpoint 10355 | -7/Garrison | Triggered checkpoint 10427 | -7/Garrison | Triggered checkpoint 10579 | -7/Garrison | Discovered new exit (range 13) 10599 | -7/Garrison | Attempted to access garrison exit controls, blocked by remote lockdown 10649 | -7/Garrison | Triggered checkpoint 10746 | -7/Garrison | Build established: Mutant 10791 | -7/Garrison | Garrison Relay disabled 10973 | -7/Garrison | Triggered checkpoint 11023 | -7/Garrison | Garrison Relay disabled 11217 | -7/Garrison | Discovered new exit (range 15) 11783 | -7/Garrison | Discovered new exit (range 14) 11861 | -7/Garrison | Triggered checkpoint 12106 | -7/Garrison | Lost 4 parts (2n2w) 12233 | -7/Garrison | Installed Relay Interface Framework 13070 | -7/Garrison | Garrison Relay disabled 13128 | -7/Garrison | Build established: Skirmisher 13133 | -7/Garrison | Entered Factory 13333 | -7/Factory | Discovered new exit (range 15) 13364 | -7/Factory | Identified exit to Lower Caves 13533 | -7/Factory | First assault squad dispatched 13882 | -7/Factory | Garrison activated, responded to threat 14465 | -7/Factory | System corruption reached 10% 14869 | -7/Factory | Cargo convoy interrupted 15266 | -7/Factory | Core integrity fell below 50% 15478 | -7/Factory | Core integrity fell below 20% 15527 | -7/Factory | Lost 8 parts (1p2n2u3w) 15557 | -7/Factory | Destroyed by G-50 Soldier with Heavy Laser Last Messages --------------- 15556_ G-47 Trooper destroyed. 15556_ Power Conduit explodes. 15556_ Destroyed Aluminum Leg. 15556_ Destroyed Particle Gun. 15556_ G-47 Trooper destroyed. 15556_ Power Conduit explodes. 15556_ G-47 Trooper destroyed. 15556_ Destroyed Imp. Heat Sink. 15556_ Destroyed Wheel. 15556_ Destroyed Lgt. Ion Engine. 15556_ Destroyed Imp. Deuterium Engine. 15556_ Destroyed Particle Gun. 15556_ Power Conduit explodes. 15556_ Destroyed Lgt. Ion Engine. 15556_ K-01 Serf destroyed. 15556_ G-47 Trooper destroyed. 15557_ Acquired 19 matter. 15557_ Acquired 25 matter. 15557_ Med. Treads destroyed. 15557_ Arm. Treads destroyed. Map ----- +----------------------------------------------------+ | ?????????????????????????????????????????????????? | | ?????????????????????????????????????????????????? | | ?????????????????????????????????????????????????? | | ?????????????????????????????????????????????????? | | ?????????????????????????????????????????????????? | | ?????????????????????????????????????????????????? | | ?????????????????????????????????????????????????? | | ???????????????????????????????????????????????? | | ???????????????????????????????????????????????? | | ???????????????????????????????????????????????? | | ???????????????????????????????????????????????? | | ????????????????????????????????????????????????? | | ????????????????? ???????????????????????????? | | ???? ??????????# ???????????????????????????? | | #####/######+#### #########??????????????????? | | ??????????????????? | | ???????????????????? | | s ???????????????????? | | s ????????????????????? | | ????????????????????? | | #####+############/;;;;;;; ##???????????????????? | | #???????????# k ; ;#???????????????????? | | #???????????# ;#???????????????????? | | #???????????#! ;#???????????????????? | | #???????????# ;#???????????????????? | | #???????????# @ ;#???????????????????? | | #???????? ;; ;#???????????????????? | | ##???????? ;;! ;#???????????????????? | | ##????????? ; ;#???????????????????? | | ##????????? Y [; ##???????????????????? | | ##??????????; l= * #????????????????????? | | ##??????????; =# ####?????????????????? | | ##??????????; # ##????????????????? | | ##???????????; ##;# ##????????????????? | | ##??????????? ; g# #?????????????????? | | ##????????????## # # T m+ #?????????????????? | | ##?????????????### # # #?????????????????? | | ################## #! ! [# #?????????????????? | | ################## # # #?????????????????? | | # """ # #?????????????????? | | ################## # """ # #?????????????????? | | ################## # """ # #?????????????????? | | #???????????????##%# # #?????????????????? | | ???????????????? #%######## [=#?????????????????? | | ???????????????? # ########/## #?????????????????? | | ???????????????? # #] #=#?????????????????? | | ???????????????? # # # #?????????????????? | | ???????????????? + / # #?????????????????? | | ???????????????? # # """T""" # #?????????????????? | | ???????????????? # ########### #?????????????????? | +----------------------------------------------------+ Best States ------------- Heat Dissipation 53 Energy Generation 23 Energy Capacity 340 Matter Stores 300 Matter Capacity 300 Sight Range 16 Terrain Scan Density 10 Jamming Range 16 Cloak Strength 5 Power Amplification 30 Armor Coverage 225 Utility Shielding 33 Evasion (%) 55 Targeting Accuracy 8 Recoil Reduction 8 Kinecelleration 30 Item Schematics ----------------- None Robot Schematics ------------------ None Fabricated ------------ Nothing Repaired ---------- Nothing Alien Tech Used ----------------- None Achievements -------------- None Challenges ------------ None Game ------ Seed DeliveryChromaticBank Manual? 0 Play Time 05:49:34 Cumulative 299.1 hours Start 2024.11.10 @ 16:16:28 End 2024.11.16 @ 23:17:06 Sessions 5 Manual Loads 0 Difficulty Rogue Special Mode None Game No. 187 Rogue 170 Adventurer 11 Explorer 6 Win Type - Total 4 Types 4/0/0/0/0/0/0/0/0 Lore% 42 Gallery% 61 Achievement% 51 Wizard Run 0 Options --------- Layout 0 ASCII 0 Keyboard 0 Movement Numpad Keybinds 0 Fullscreen 2 Font 24/Smallcaps Map View 113x50 Zoom Use 0% Tactical HUD 1 Map Filters NONE Filters NONE Steam 1 RUN: 5807d5fb-92a6-4108-91d4-47ec6d7efd45